bitfinex/quotes_ETHUSD_20240709
["timestamp","ask_amount","ask_price","bid_price","bid_amount"]
[1720495104621,2.3886,3060.9,3060.2,3.26772]
[1720495104977,2.3886,3060.9,3060.4,3.26753]
[1720495105626,2.3886,3060.9,3060.6,3.26727]
[1720495105928,0.34173422,3061.0,3060.9,6.53402]
[1720495106091,0.34173422,3061.0,3060.9,7.08402]
[1720495106723,0.34173422,3061.0,3060.7,3.26719]
[1720495106936,0.34173422,3061.0,3060.4,7.44]
[1720495107070,0.60308764,3061.0,3060.4,7.44]
[1720495107273,0.34173422,3061.0,3060.4,10.70745]
[1720495107611,0.34173422,3061.0,3060.4,7.44]
[1720495108078,0.34173422,3061.0,3060.4,10.70752]
[1720495108428,0.34173422,3061.0,3060.4,7.44]
[1720495108603,0.26135342,3060.9,3060.0,10.70796]
[1720495108909,2.2718,3060.8,3060.0,10.70796]
[1720495109119,2.2718,3060.8,3060.0,3.26796]
[1720495113576,2.2718,3060.8,3059.6,7.44]
[1720495113577,2.35349054,3060.8,3059.6,7.44]
[1720495113774,2.4504,3060.6,3059.2,10.70879]
[1720495113977,2.4504,3060.4,3059.0,3.269]
[1720495114278,1.21394166,3060.5,3058.8,10.70924]
[1720495114279,2.4504,3060.2,3058.8,10.70924]
[1720495114484,2.53211384,3060.1,3058.8,10.70924]
[1720495114699,2.87389559,3060.1,3058.8,7.44]
[1720495114912,2.4504,3059.9,3058.8,7.44]
[1720495115104,4.13245921,3060.0,3058.3,12.48]
[1720495115105,2.4504,3059.7,3058.4,7.44]
[1720495115315,2.4504,3059.7,3058.5,3.26957]
[1720495115316,0.08172715,3059.6,3058.5,3.26957]
[1720495115647,2.296,3059.5,3058.4,7.44]
[1720495115920,0.61950522,3059.4,3058.4,7.44]
[1720495116142,0.0817325,3059.4,3058.4,7.44]
[1720495116622,2.296,3059.3,3058.0,7.44]
[1720495116796,2.296,3059.1,3057.7,3.27042]
[1720495117001,2.296,3059.1,3057.8,3.27032]
[1720495117219,2.296,3059.1,3057.9,3.27019]
[1720495118744,2.296,3059.1,3058.1,3.27]
[1720495118918,2.296,3059.1,3058.2,3.26988]
[1720495119237,6.52674013,3059.6,3059.1,3.2689]
[1720495119238,2.2992,3059.6,3059.1,3.2689]
[1720495119524,2.2992,3059.6,3058.9,3.26906]
[1720495119885,2.2992,3059.6,3059.0,3.26901]
[1720495120408,0.08172168,3059.5,3058.7,10.70933]
[1720495120732,0.08172168,3059.5,3058.8,6.26921]
[1720495120884,2.2992,3059.6,3058.8,3.0]
[1720495121239,2.2992,3059.6,3059.0,3.26902]
[1720495121983,2.2992,3059.6,3059.1,3.26891]
[1720495122329,2.81648175,3060.1,3059.1,3.26891]
[1720495122629,1.015612,3059.6,3059.1,3.26891]
[1720495123781,1.015612,3059.6,3059.2,0.06462154]
[1720495123983,1.015612,3059.6,3059.3,3.26871]
[1720495127085,1.015612,3059.6,3059.1,3.26891]
[1720495127389,1.015612,3059.6,3059.2,3.26882]
[1720495127727,1.015612,3059.6,3059.3,3.26872]
[1720495128984,1.015612,3059.6,3059.1,3.26893]
[1720495129213,1.015612,3059.6,3059.2,3.26882]
[1720495130535,1.015612,3059.6,3058.8,0.06462121]
[1720495130825,1.015612,3059.6,3058.8,3.0646102]
[1720495131036,1.015612,3059.6,3059.5,6.537]
[1720495133512,1.015612,3059.6,3059.5,3.2685]
[1720495135333,1.015612,3059.6,3059.2,3.26879]
[1720495135506,1.015612,3059.6,3059.3,3.26872]
[1720495135705,1.015612,3059.6,3059.4,3.2686]
[1720495136136,1.015612,3059.6,3059.1,6.53778]
[1720495136289,1.015612,3059.6,3059.1,3.26886]
[1720495137300,1.015612,3059.6,3059.0,3.26894]
[1720495137705,1.015612,3059.6,3059.1,3.26892]
[1720495138929,1.015612,3059.6,3059.4,3.26861]
[1720495139442,1.015612,3059.6,3059.5,3.2685]
[1720495141676,1.015612,3059.6,3057.9,7.44]
[1720495141677,3.445,3059.5,3057.9,7.44]
[1720495141856,2.48989182,3059.6,3058.0,3.2701]
[1720495141857,9.41158665,3059.4,3058.0,3.2701]
[1720495142018,2.4196,3059.2,3057.9,3.27014]
[1720495142356,2.87214152,3059.1,3057.9,3.27014]
[1720495142577,2.05188902,3059.0,3057.9,3.27014]
[1720495142874,2.05188902,3059.0,3057.8,3.2703]
[1720495142875,2.87180819,3058.9,3057.8,3.2703]
[1720495143078,1.73901169,3058.9,3057.9,3.27021]
[1720495143277,0.37909007,3058.8,3057.9,6.27021]
[1720495143486,0.83734855,3059.0,3057.9,6.27021]
[1720495143636,1.13283357,3058.9,3057.9,6.27021]
[1720495143832,0.91909251,3059.0,3057.9,3.0]
[1720495144036,1.13284107,3058.9,3057.8,3.27024]
[1720495144236,0.20519336,3058.8,3057.9,3.0]
[1720495144534,0.91909251,3059.0,3057.9,3.0]
[1720495144841,0.83734855,3059.0,3057.9,3.0]
[1720495145347,0.83734855,3059.0,3058.0,3.27005]
[1720495146161,0.08173861,3058.9,3057.9,3.0]
[1720495146343,0.08173861,3058.9,3057.7,3.27042]
[1720495146344,0.08173861,3058.9,3057.8,3.0]
[1720495146570,2.2754,3058.8,3057.5,7.44]
[1720495146774,0.31746517,3058.7,3057.5,7.44]
[1720495147074,0.31746517,3058.7,3057.3,3.27085]
[1720495147075,2.2754,3058.6,3057.3,3.27085]
[1720495147642,2.2754,3058.6,3057.4,3.2707]
[1720495147888,2.2754,3058.6,3057.8,3.27032]
[1720495148035,2.2754,3058.6,3057.9,0.06468725]
[1720495148236,2.50294,3058.6,3057.9,3.33488725]
[1720495148546,2.2754,3058.6,3057.9,3.33488725]
[1720495149090,2.4348,3059.4,3058.0,3.2701]
[1720495149256,1.13270435,3059.3,3058.2,3.26982]
[1720495149436,1.13270435,3059.3,3058.0,3.2701]
[1720495149437,2.4348,3059.1,3058.0,3.2701]
[1720495149644,2.4348,3059.1,3058.1,3.26999]
[1720495149887,2.4348,3059.1,3057.5,7.44]
[1720495149888,3.56416448,3059.0,3057.5,7.44]
[1720495150039,0.0817492,3058.9,3057.6,3.27053]
[1720495150388,2.4313,3058.8,3057.6,3.27053]
[1720495150542,0.25130492,3058.7,3057.6,3.27053]
[1720495150761,0.25130492,3058.7,3057.8,3.2703]
[1720495151281,2.4313,3058.8,3058.0,3.27005]
[1720495151814,2.4313,3058.8,3057.9,0.06467517]
[1720495151815,2.4313,3058.8,3057.9,3.2702]
[1720495151978,2.4313,3058.8,3057.8,3.2703]
[1720495152182,2.3165,3058.6,3057.5,7.44]
[1720495152494,2.39826205,3058.6,3057.5,7.44]
[1720495152698,2.3165,3058.4,3057.5,7.44]
[1720495152867,0.08176284,3058.3,3057.5,7.44]
[1720495153302,2.35746282,3058.2,3057.2,0.005]
[1720495154087,2.2757,3058.2,3057.2,0.005]
[1720495154301,0.23574684,3058.1,3057.2,0.005]
[1720495154505,0.31751523,3058.1,3057.2,0.005]
[1720495155371,2.3084,3058.0,3057.2,0.005]
[1720495160017,2.451,3058.3,3057.4,3.27067]
[1720495160627,2.451,3058.3,3057.5,3.27063]
[1720495160967,2.451,3058.3,3057.6,3.27053]
[1720495162568,2.82366847,3058.7,3057.7,3.0]
[1720495162895,3.02428447,3058.7,3057.7,3.0]
[1720495163379,0.08174868,3058.6,3057.7,3.0]
[1720495163703,3.02428447,3058.7,3057.7,3.0]
[1720495164272,2.3574,3058.5,3057.3,7.44]
[1720495164607,3.0275796,3058.4,3057.3,7.44]
[1720495165326,1.13316155,3058.3,3057.3,7.44]
[1720495165479,1.21494511,3058.2,3057.3,7.44]
[1720495165721,0.0817647,3058.2,3057.3,7.44]
[1720495165928,0.38452266,3058.2,3057.3,7.44]
[1720495166135,0.38452266,3058.2,3057.2,0.005]
[1720495166136,2.286,3058.1,3057.2,0.005]
[1720495166347,1.21495818,3058.0,3057.2,0.005]
[1720495166555,0.08177247,3058.0,3057.2,0.005]
[1720495166721,0.23677725,3057.9,3057.2,0.005]
[1720495167360,2.286,3057.7,3057.2,0.005]
[1720495168349,0.08177243,3057.6,3057.2,0.005]
[1720495168715,2.286,3057.7,3057.2,0.005]
[1720495168918,0.08177243,3057.6,3057.2,0.005]
[1720495169563,2.4612,3057.5,3057.2,0.005]
[1720495169727,0.25429724,3057.4,3057.2,0.005]
[1720495170053,3.59462179,3057.3,3057.2,0.005]
[1720495170456,3.59462179,3057.3,3056.0,0.005]
[1720495170457,2.4612,3057.2,3056.0,0.005]
[1720495170758,2.4612,3057.0,3056.0,0.005]
[1720495170910,1.84556456,3056.9,3056.0,0.005]
[1720495171114,1.13342179,3056.8,3056.0,0.005]
[1720495171812,3.71214277,3056.9,3056.0,0.005]
[1720495172012,1.13364996,3056.8,3056.0,0.005]
[1720495172245,2.4612,3057.0,3056.0,3.27723]
[1720495172445,2.70732,3057.0,3056.0,3.27723]
[1720495173458,2.4612,3057.0,3056.1,3.27207]
[1720495173816,0.25429724,3057.4,3056.2,3.55]
[1720495173817,2.60189724,3057.4,3056.2,3.55]
[1720495174020,2.60189724,3057.4,3056.4,3.27174]
[1720495174225,2.60189724,3057.4,3056.5,3.27171]
[1720495174658,2.60189724,3057.4,3056.0,0.005]
[1720495174659,0.60176953,3057.3,3056.0,0.005]
[1720495174960,0.60176953,3057.3,3056.0,3.27722]
[1720495175160,1.13355045,3057.2,3056.0,3.27722]
[1720495175460,0.08179429,3057.1,3056.0,0.005]
[1720495175660,0.44197261,3057.1,3056.0,0.005]
[1720495176549,0.44197261,3057.1,3056.0,3.005]
[1720495177269,2.4432,3057.0,3056.0,3.005]
[1720495177472,0.08179427,3056.9,3056.0,3.005]
[1720495178631,2.4432,3057.0,3056.0,3.005]
[1720495178828,0.28033783,3056.9,3056.0,3.005]
[1720495179078,0.28033783,3056.9,3056.0,6.27724]
[1720495179573,2.4432,3057.0,3056.1,3.27213]
[1720495179947,2.4432,3057.0,3056.3,3.27189]
[1720495180643,0.51998893,3057.3,3056.3,3.27189]
[1720495180847,2.96068893,3057.3,3056.3,3.27189]
[1720495181471,2.96068893,3057.3,3056.6,3.2716]
[1720495181768,2.96068893,3057.3,3056.4,3.27176]
[1720495181769,0.59606889,3057.2,3056.4,3.27176]
[1720495181978,2.96068893,3057.3,3056.2,3.27195]
[1720495182198,2.96068893,3057.3,3056.3,3.27191]
[1720495182472,0.30424714,3057.2,3056.3,3.27191]
[1720495183136,0.30424714,3057.2,3056.4,3.27182]
[1720495186091,0.30424714,3057.2,3056.2,3.27195]
[1720495186542,0.30424714,3057.2,3056.3,6.27192]
[1720495187046,0.38603199,3057.2,3056.3,3.0]
[1720495187269,0.2826732,3057.1,3056.1,6.27205]
[1720495188410,0.2826732,3057.1,3056.4,3.27181]
[1720495190687,0.2826732,3057.1,3056.5,3.2717]
[1720495190846,2.4407,3057.3,3056.5,3.2717]
[1720495192046,2.4407,3057.3,3056.3,3.27183]
[1720495192241,0.08178477,3057.2,3056.4,3.0]
[1720495192457,3.57460988,3057.1,3056.1,3.0]
[1720495192677,3.57460988,3057.1,3056.1,6.27211]
[1720495192678,1.21530376,3057.0,3056.1,6.27211]
[1720495192879,3.57466086,3056.9,3056.0,0.005]
[1720495193140,1.58100852,3056.8,3056.0,0.005]
[1720495193340,1.21536305,3056.7,3056.0,0.005]
[1720495193579,0.36564547,3056.8,3056.0,0.005]
[1720495193771,1.13363299,3056.7,3056.0,0.005]
[1720495193975,0.36564547,3056.8,3056.0,0.005]
[1720495194186,2.4411,3056.6,3056.0,0.005]
[1720495194563,2.4411,3056.4,3056.0,0.005]
[1720495194742,2.4411,3056.2,3056.0,0.005]
[1720495195050,1.5813251,3056.1,3056.0,0.005]
[1720495195246,1.49951057,3056.1,3056.0,0.005]
[1720495195820,0.36566198,3056.1,3056.0,0.005]
[1720495195990,2.4411,3057.1,3056.2,3.27202]
[1720495196203,1.13351036,3057.0,3056.2,3.27202]
[1720495196487,2.4411,3057.1,3056.2,3.33682131]
[1720495196691,1.13344601,3057.0,3056.2,3.27202]
[1720495196891,2.4411,3057.1,3056.5,3.2717]
[1720495197299,2.4411,3057.1,3056.2,3.27202]
[1720495197508,1.13345413,3057.0,3056.3,3.27192]
[1720495197668,2.68521,3057.1,3056.0,3.27724]
[1720495197867,1.4019859,3057.0,3056.1,3.0]
[1720495198062,1.1334649,3056.9,3056.2,3.27201]
[1720495198362,2.4411,3057.1,3056.2,3.27201]
[1720495198701,1.13345619,3057.0,3056.2,3.27201]
[1720495198865,2.4411,3057.1,3056.4,3.2718]
[1720495199059,1.13341026,3057.0,3056.4,3.2718]
[1720495199261,2.4411,3057.1,3056.4,3.2718]
[1720495199262,1.13344381,3056.9,3056.4,3.2718]
[1720495199525,2.4411,3057.1,3056.4,3.2718]
[1720495199688,1.1334705,3057.0,3056.4,3.2718]
[1720495199891,1.1334705,3056.9,3056.4,3.2718]
[1720495200099,2.76699586,3057.1,3056.1,3.0]
[1720495200411,1.491963,3057.0,3056.1,3.27214]
[1720495200610,0.27669959,3057.0,3056.2,3.0]
[1720495200766,1.13355523,3056.9,3056.2,6.272]
[1720495200971,1.13355523,3056.8,3056.3,3.2719]
[1720495201297,2.4411,3057.1,3056.3,3.2719]
[1720495201497,1.13350512,3057.0,3056.5,3.27169]
[1720495201796,2.3569,3057.4,3056.3,3.27186]
[1720495202004,1.21522037,3057.3,3056.4,3.0]
[1720495202176,1.13343455,3057.2,3056.4,3.0]
[1720495202511,1.13343455,3057.2,3056.4,6.27182]
[1720495202512,0.08178672,3057.2,3056.4,6.27182]
[1720495202686,1.13346135,3057.1,3056.4,6.27182]
[1720495202886,1.13346135,3057.0,3056.4,6.27182]
[1720495203089,1.13344746,3056.9,3056.5,3.27171]
[1720495203270,0.24386867,3057.2,3056.6,3.27159]
[1720495203475,1.13339211,3057.1,3056.6,3.27159]
[1720495203687,1.13340291,3057.0,3056.6,3.27159]
[1720495203891,0.24386867,3057.2,3056.6,3.27159]
[1720495204079,1.13338403,3057.1,3056.6,3.27159]
[1720495204290,1.1334232,3057.0,3056.5,3.2717]
[1720495204516,0.24386867,3057.2,3056.7,3.27145]
[1720495204676,1.13338856,3057.1,3056.7,3.27145]
[1720495204883,2.3569,3057.4,3056.8,3.27135]
[1720495205223,1.13332549,3057.3,3056.8,3.27135]
[1720495205380,2.7296033,3057.4,3056.8,3.27135]
[1720495205575,2.7296033,3057.4,3056.5,0.06477326]
[1720495205776,3.63273304,3057.8,3057.2,3.27096]
[1720495205973,2.2626,3057.8,3057.2,3.27096]
[1720495206279,2.2626,3057.8,3056.9,3.27127]
[1720495206484,3.63301604,3057.8,3057.1,3.27105]
[1720495206679,3.05700282,3057.8,3057.1,3.27105]
[1720495207315,3.05700282,3057.8,3057.2,3.27095]
[1720495207501,2.2626,3057.8,3057.2,3.27095]
[1720495208733,0.08176944,3057.7,3056.8,10.71137]
[1720495208880,1.37041604,3057.7,3056.9,6.27128]
[1720495209082,2.2626,3057.8,3056.9,6.27128]
[1720495209083,3.63301604,3057.8,3056.9,6.27128]
[1720495209276,2.02777725,3057.7,3056.9,6.27128]
[1720495209472,0.65736121,3057.7,3057.0,3.27116]
[1720495209922,3.63409413,3057.8,3057.1,3.27106]
[1720495210226,3.63409413,3057.8,3057.2,3.27089]
[1720495210933,1.37149413,3057.9,3057.5,3.27062]
[1720495211217,1.37149413,3057.9,3056.9,3.0]
[1720495211218,1.37149413,3058.0,3057.2,3.27093]
[1720495211727,1.37149413,3058.1,3057.5,3.27064]
[1720495211884,1.37149413,3058.0,3057.5,3.27064]
[1720495212286,1.7764009,3058.1,3057.5,3.27064]
[1720495212509,1.37149413,3058.1,3057.5,3.27064]
[1720495212717,1.37161074,3058.1,3057.5,3.27064]
[1720495215301,3.70631074,3058.2,3057.5,3.27064]
[1720495215870,4.24839407,3058.2,3057.5,3.27064]
[1720495216021,1.13307713,3058.1,3057.1,7.44]
[1720495216185,2.50412218,3058.0,3057.2,3.27095]
[1720495216387,1.391721,3057.9,3057.2,3.27095]
[1720495216631,0.25858848,3057.9,3057.2,3.27095]
[1720495216923,1.37098966,3058.1,3057.3,3.27082]
[1720495217129,1.13313388,3058.0,3057.4,3.27074]
[1720495217324,1.37098966,3058.1,3057.4,3.27074]
[1720495218037,1.13313365,3058.0,3057.4,3.27074]
[1720495218182,0.53809066,3058.0,3057.4,3.27074]
[1720495218540,0.53809066,3058.0,3057.3,3.27082]
[1720495218541,1.13317177,3057.9,3057.3,3.27082]
[1720495218689,1.90908032,3058.0,3057.3,3.27082]
[1720495218889,0.53809066,3058.0,3057.3,3.27082]
[1720495219091,1.37098966,3058.1,3057.5,3.27057]
[1720495219284,2.87678333,3058.2,3057.5,3.27057]
[1720495219285,4.24777299,3058.2,3057.5,3.27057]
[1720495219585,2.50411496,3058.1,3057.5,3.27057]
[1720495219922,3.70568966,3058.2,3057.5,3.27057]
[1720495220139,1.13313348,3058.1,3057.5,3.27057]
[1720495220433,0.48388231,3058.0,3057.3,3.27079]
[1720495220597,0.56564551,3058.0,3057.1,10.71107]
[1720495220802,1.13321011,3057.9,3057.1,10.71107]
[1720495221012,2.3114,3057.7,3057.1,10.71107]
[1720495221215,2.3114,3057.7,3057.1,3.27107]
[1720495221803,2.3931712,3057.7,3056.7,10.71141]
[1720495222335,2.3114,3057.7,3056.7,10.71141]
[1720495222629,2.3114,3057.7,3056.9,3.27125]
[1720495223689,2.57323845,3057.7,3056.9,3.27125]
[1720495224720,1.1332637,3057.6,3056.9,3.27125]
[1720495224919,2.57323845,3057.7,3057.1,3.27103]
[1720495225320,1.13324298,3057.6,3057.1,3.27103]
[1720495225633,2.57323845,3057.7,3057.1,3.27103]
[1720495225845,1.13324235,3057.6,3057.1,3.27103]
[1720495225988,2.57323845,3057.7,3057.1,3.27103]
[1720495226343,1.13322722,3057.6,3057.1,3.27103]
[1720495226629,2.57323845,3057.7,3057.1,3.27103]
[1720495226630,1.13322722,3057.5,3057.1,3.27103]
[1720495226788,1.13322722,3057.6,3057.1,3.27103]
[1720495226992,0.08177437,3057.5,3056.9,3.27125]
[1720495227313,1.13322722,3057.4,3056.9,3.27125]
[1720495227508,1.13322722,3057.5,3056.9,3.27125]
[1720495227723,1.57831139,3057.5,3056.9,3.27125]
[1720495227927,1.13322722,3057.4,3056.9,3.27125]
[1720495228711,0.42509562,3057.6,3057.0,3.27117]
[1720495228887,2.3114,3057.7,3057.1,3.27097]
[1720495229088,1.13326743,3057.6,3057.1,3.27097]
[1720495229401,2.3114,3057.7,3057.1,3.27097]
[1720495229593,1.13320514,3057.6,3057.1,3.27097]
[1720495229788,2.3114,3057.7,3057.1,3.27097]
[1720495229993,1.13320446,3057.6,3057.1,3.27097]
[1720495230287,1.13321566,3057.5,3057.3,3.27078]
[1720495230524,1.37104088,3058.0,3057.3,3.27078]
[1720495230728,1.13316682,3057.9,3057.3,3.27078]
[1720495230935,1.13316682,3057.8,3057.3,3.27078]
[1720495231207,1.13316682,3057.7,3057.3,3.27078]
[1720495231383,4.77356099,3058.1,3057.3,3.27078]
[1720495231585,2.01301159,3058.0,3057.3,3.27078]
[1720495231790,0.87987621,3058.0,3057.3,3.27078]
[1720495232036,1.19388232,3057.9,3057.3,3.27078]
[1720495232329,1.13315025,3057.8,3057.3,3.27078]
[1720495232631,1.19300782,3057.7,3057.3,3.27078]
[1720495232929,1.13315025,3057.6,3057.3,3.27078]
[1720495233093,0.05978983,3057.5,3057.3,3.27078]
[1720495233631,0.53114129,3057.9,3057.3,3.27078]
[1720495233788,0.05960489,3057.4,3057.3,3.27078]
[1720495233988,0.87987621,3058.0,3057.3,3.27078]
[1720495234233,0.05966548,3057.4,3057.3,3.27078]
[1720495234390,0.87987621,3058.0,3057.3,3.27078]
[1720495234616,0.05974812,3057.4,3057.3,3.27078]
[1720495234816,4.37079974,3058.1,3057.3,3.27078]
[1720495235019,0.05960489,3057.4,3057.3,3.27078]
[1720495235194,0.66821997,3058.0,3057.3,6.54155]
[1720495235401,0.05960489,3057.4,3057.3,6.54155]
[1720495235705,0.05966548,3057.4,3057.3,3.27077]
[1720495236003,1.37082069,3058.4,3058.1,3.27]
[1720495236203,1.13292853,3058.3,3058.1,3.27]
[1720495236405,4.34751949,3059.0,3058.1,3.27]
[1720495236715,1.13281258,3058.9,3058.1,3.27]
[1720495236895,1.13281258,3058.8,3058.1,3.27]
[1720495237103,1.13281258,3058.7,3058.1,3.27]
[1720495237331,1.13281258,3058.8,3058.1,3.27]
[1720495237535,1.13281258,3058.7,3058.1,3.27]
[1720495237843,1.13281258,3058.6,3058.1,3.27]
[1720495238152,1.58705036,3058.8,3058.1,3.27]
[1720495238333,1.13284759,3058.7,3058.1,3.27]
[1720495238637,1.13284759,3058.6,3058.1,3.27]
[1720495238796,1.13284759,3058.7,3058.1,3.27]
[1720495238999,1.59155613,3058.7,3057.9,3.2702]
[1720495239199,1.19318885,3058.6,3057.9,3.2702]
[1720495239395,1.13284759,3058.5,3057.9,3.2702]
[1720495239842,0.0601588,3058.4,3057.9,3.2702]
[1720495240102,1.13292282,3058.3,3057.9,3.2702]
[1720495240428,0.06021176,3058.2,3058.0,3.2701]
[1720495240815,2.3941,3059.0,3058.1,3.27]
[1720495241018,1.13284132,3058.9,3058.1,3.27]
[1720495241219,1.13284132,3058.8,3058.1,3.27]
[1720495241449,2.3941,3059.0,3058.1,3.27]
[1720495241750,1.1328052,3058.9,3058.1,3.27]
[1720495241900,3.11907467,3059.3,3058.1,3.27]
[1720495242106,1.71327898,3059.1,3058.1,3.27]
[1720495242307,1.13280046,3059.0,3058.1,3.27]
[1720495242563,1.13280046,3058.9,3058.1,3.27]
[1720495242721,1.13280046,3058.9,3057.9,3.2702]
[1720495242722,2.4376,3058.7,3057.7,7.44]
[1720495243044,1.71327898,3058.3,3057.7,7.44]
[1720495243242,1.13280046,3058.2,3057.3,3.27078]
[1720495243564,1.13280046,3058.2,3057.4,3.27071]
[1720495244059,1.13280046,3058.2,3057.3,3.27078]
[1720495244400,2.92784287,3058.2,3057.3,3.27078]
[1720495244605,0.29278429,3058.1,3057.3,3.27078]
[1720495244846,1.13314699,3058.1,3057.3,3.27078]
[1720495245019,1.13314699,3058.0,3057.3,3.27078]
[1720495245214,1.13314699,3058.1,3057.3,3.27078]
[1720495245454,1.13314699,3058.0,3057.4,3.27072]
[1720495245658,1.71415416,3058.4,3057.4,3.27072]
[1720495245818,0.36521399,3058.6,3057.5,3.27057]
[1720495245819,1.13306405,3058.3,3057.5,3.27057]
[1720495246152,2.2274181,3058.5,3057.5,3.27057]
[1720495246153,1.13306405,3058.2,3057.5,3.27057]
[1720495246320,1.13306405,3058.1,3057.5,3.27057]
[1720495246522,1.71415416,3058.4,3057.6,3.27052]
[1720495246707,7.494585,3058.7,3057.6,3.27052]
[1720495246708,1.1330436,3058.3,3057.6,3.27052]
[1720495246913,1.1330436,3058.2,3057.5,5.57047]
[1720495247109,1.13303221,3058.1,3057.5,3.27057]
[1720495247346,1.13306114,3058.0,3057.3,3.27083]
[1720495247660,0.08175429,3058.4,3057.3,3.27083]
[1720495247661,1.13311495,3057.9,3057.3,3.27083]
[1720495247860,1.71468418,3058.2,3057.3,3.27083]
[1720495248009,1.13313686,3058.1,3057.3,3.27083]
[1720495248209,1.13313686,3058.0,3057.3,3.27083]
[1720495248418,1.71468418,3058.3,3057.4,3.27075]
[1720495248649,1.13309274,3058.2,3057.4,3.27075]
[1720495248835,1.13309274,3058.1,3057.4,3.27075]
[1720495249026,1.71468418,3058.4,3057.4,3.27075]
[1720495249233,1.13302707,3058.3,3057.4,3.27075]
[1720495249555,1.13302707,3058.2,3057.4,3.27075]
[1720495249858,1.71468418,3058.4,3057.4,3.27075]
[1720495250152,1.13304466,3058.3,3057.4,3.27075]
[1720495250309,1.13304466,3058.2,3057.4,3.27075]
[1720495250510,1.13304466,3058.3,3057.4,3.27075]
[1720495251120,1.71539788,3058.4,3057.4,3.27075]
[1720495251335,2.84843695,3058.3,3057.4,3.27075]
[1720495251512,1.13306249,3058.2,3057.4,3.27075]
[1720495251706,1.13306906,3058.1,3057.5,3.27058]
[1720495251911,1.71555126,3058.3,3057.5,3.27058]
[1720495252107,1.1330755,3058.2,3057.5,3.27058]
[1720495252313,1.1330755,3058.1,3057.5,3.27058]
[1720495252517,2.03728968,3058.3,3057.5,3.27058]
[1720495252835,1.13304449,3058.2,3057.5,3.27058]
[1720495253032,1.13304449,3058.1,3057.5,3.27058]
[1720495253255,1.13304449,3058.2,3057.5,3.27058]
[1720495254058,1.13304449,3058.2,3057.1,5.6531]
[1720495254264,3.24086661,3058.2,3057.2,6.27094]
[1720495254419,1.13309826,3058.1,3057.2,6.27094]
[1720495254625,1.13309826,3058.0,3057.2,6.27094]
[1720495254823,1.13309826,3058.1,3057.2,6.27094]
[1720495255050,1.13309826,3058.1,3057.4,3.27074]
[1720495255872,1.13309826,3058.1,3057.3,3.27085]
[1720495256363,1.13309826,3058.1,3057.2,6.27088]
[1720495256523,1.41797661,3058.1,3057.2,6.27088]
[1720495256864,1.13309826,3058.0,3057.2,6.27088]
[1720495257028,0.08176004,3057.9,3057.2,3.0]
[1720495257224,0.08176004,3057.9,3057.1,2.3821]
[1720495257225,1.13316715,3057.8,3057.1,5.3821]
[1720495257425,0.08176004,3057.9,3057.1,5.3821]
[1720495257630,0.08176004,3057.9,3056.9,7.44]
[1720495257631,1.13317465,3057.8,3056.9,7.44]
[1720495257832,1.21494533,3057.7,3056.8,3.27135]
[1720495258152,1.13317465,3057.6,3056.9,3.0]
[1720495258325,3.13628046,3057.8,3056.9,3.0]
[1720495258641,1.13317465,3057.7,3056.9,3.0]
[1720495259661,0.34194386,3057.6,3056.9,3.0]
[1720495260282,0.34194386,3057.6,3056.5,7.44]
[1720495260460,1.13323324,3057.5,3056.5,7.44]
[1720495260656,1.13327424,3057.4,3056.7,3.27142]
[1720495260860,0.58462593,3057.6,3056.8,3.0]
[1720495261070,0.34194386,3057.6,3057.0,3.27109]
[1720495261271,0.34194386,3057.6,3057.2,3.27087]
[1720495261492,0.34194386,3057.6,3057.3,3.33550372]
[1720495261858,0.34194386,3057.6,3057.5,3.27064]
[1720495262059,0.34194386,3057.6,3057.5,6.54128]
[1720495262282,2.3373,3058.8,3057.8,3.27027]
[1720495262283,4.05321449,3058.8,3057.8,3.27027]
[1720495262478,1.1328441,3058.7,3057.8,3.27027]
[1720495262678,0.34193501,3058.7,3057.8,3.27027]
[1720495262897,1.13278949,3058.6,3057.8,3.27027]
[1720495263100,1.13278949,3058.6,3057.9,3.2702]
[1720495263400,0.34193501,3058.7,3058.1,2.4388]
[1720495263604,0.34193501,3058.7,3058.3,3.26978]
[1720495263818,0.34193501,3058.7,3058.3,3.33444543]
[1720495264160,4.16284115,3059.3,3058.3,3.33444543]
[1720495264357,1.47464523,3059.2,3058.1,8.70878]
[1720495264626,1.21443904,3059.1,3058.1,3.0]
[1720495264912,1.21443904,3059.1,3058.0,3.0]
[1720495264913,1.13270371,3059.0,3058.0,3.0]
[1720495265206,1.13270371,3059.0,3058.0,6.27008]
[1720495265207,0.08174175,3058.9,3058.0,6.27008]
[1720495265410,1.13270371,3058.8,3058.0,6.27008]
[1720495265721,0.32714217,3059.0,3058.0,3.0]
[1720495265722,0.40888384,3059.0,3058.0,3.0]
[1720495265869,1.13283239,3058.9,3058.0,3.0]
[1720495266067,1.21457383,3058.8,3058.0,3.0]
[1720495266421,0.35987065,3058.9,3057.7,3.0]
[1720495266422,2.3842,3058.6,3057.7,3.0]
[1720495266602,1.13286274,3058.5,3057.6,6.27045]
[1720495266907,4.17993661,3059.0,3057.7,3.27041]
[1720495267073,1.58501567,3058.9,3057.8,6.27031]
[1720495267302,1.1328271,3058.8,3058.0,3.27009]
[1720495267482,1.13280088,3058.7,3058.1,3.26996]
[1720495267683,0.34194912,3059.1,3058.2,3.0]
[1720495267936,0.61456403,3059.1,3058.2,3.0]
[1720495268118,0.27261491,3059.1,3058.2,3.0]
[1720495268287,1.13267765,3059.0,3058.2,3.0]
[1720495268487,1.13267765,3058.9,3058.2,3.0]
[1720495268715,1.13267765,3059.0,3058.2,3.0]
[1720495268926,0.17472434,3058.9,3058.0,3.0]
[1720495269088,0.61456574,3059.1,3058.0,3.0]
[1720495269296,1.13275601,3059.0,3058.2,3.26979]
[1720495269526,0.34195083,3059.1,3058.2,3.26979]